Cogmind - Beta 12 @@@ ROGUE MODE // 2024.02.01 @ 01:01:01 Player: Srdjan Result: Destroyed by G-47 Trooper with Particle Gun Performance ------------- Evolutions (2) 1000 Regions Visited (6) 1200 Robots Destroyed (13) 65 Value Destroyed (406) 406 Prototype IDs (2) 40 Alien Tech Used (0) 0 Bonus (174) 174 TOTAL SCORE: 2885 Bonus ------- Entered Garrisons 200 Friendly Fire -26 Cogmind --------- Core Integrity 0/550 Matter 185/300 Energy 60/100 System Corruption 0% Temperature Cool (9) Movement Core (50) Location -8/Garrison Parts ------- > --- POWER (1) -------- (None) > --- PROPULSION (2) --- (None) > --- UTILITY (6) ------ Advanced Weight Redist. System Signal Interpreter Advanced Targeting Computer Utility Shielding > --- WEAPON (2) ------- (None) > --- INVENTORY (5) ---- Titanium Leg Minigun Minigun Heavy Missile Launcher Peak State ------------ > --- POWER ------------ Light Ion Engine > --- PROPULSION ------- Aluminum Leg Carbon-fiber Leg > --- UTILITY ---------- Small Storage Unit Visual Processing Unit Sensor Array Signal Interpreter Shield Generator System Shield > --- WEAPON ----------- Beamcaster Heavy Missile Launcher > --- INVENTORY -------- Reinforced Ion Engine Improved Aluminum Leg Advanced Weight Redist. System Advanced Beam Cannon Advanced Beam Cannon Minigun Minigun Mining Laser [Rating: 26] Favorites ----------- Power Light Ion Engine Engine Light Ion Engine Propulsion Aluminum Leg Leg Aluminum Leg Utility Small Storage Unit Device Sensor Array Storage Small Storage Unit Processor Signal Interpreter Hackware System Shield Protection Utility Shielding Weapon Advanced Beam Cannon Energy Gun Beamcaster Energy Cannon Advanced Beam Cannon Ballistic Gun Minigun Launcher Heavy Missile Launcher Build | -11 -10 -9 -9 -8 -8 -8 ------- Run | Jun Mat Mat Min Mat Sto Gar Slots Evolved 4 | . . 2 . 2 . . Power . | . . . . . . . Propulsion . | . . . . . . . Utility 4 | . . 2 . 2 . . Weapon . | . . . . . . . Parts Attached 41 | 6 3 11 8 5 7 1 Power 2 | 1 . . . . 1 . Engine 2 | 1 . . . . 1 . Core . | . . . . . . . Reactor . | . . . . . . . Propulsion 8 | 2 . 2 2 1 1 . Treads . | . . . . . . . Leg 8 | 2 . 2 2 1 1 . Wheel . | . . . . . . . Hover . | . . . . . . . Flight . | . . . . . . . Utility 12 | 1 1 4 . 2 3 1 Device 4 | . . 2 . 1 1 . Storage 1 | 1 . . . . . . Processor 4 | . 1 2 . . 1 . Hackware 1 | . . . . 1 . . Protection 2 | . . . . . 1 1 Artifact . | . . . . . . . Weapon 19 | 2 2 5 6 2 2 . Energy Gun 5 | 1 2 1 1 . . . Energy Cannon 7 | . . 3 2 1 1 . Ballistic Gun 6 | 1 . 1 3 . 1 . Ballistic Cannon . | . . . . . . . Launcher 1 | . . . . 1 . . Special Weapon . | . . . . . . . Impact Weapon . | . . . . . . . Slashing Weapon . | . . . . . . . Piercing Weapon . | . . . . . . . Special Melee Weapon . | . . . . . . . Unidentified Prototypes 2 | . . 2 . . . . Parts Lost 9 | . . . . 6 2 1 Power 2 | . . . . 1 . 1 Propulsion 3 | . . . . 3 . . Utility 3 | . . . . 1 2 . Weapon 1 | . . . . 1 . . Highest Loss Streak 6 | . . . . 6 2 1 To Critical Strikes . | . . . . . . . Average Slot Usage (%) 89 | . 93 86 100 86 63 37 Engine 10 | . 14 11 11 6 9 6 Leg 18 | . 28 19 22 16 1 . Device 10 | . . 5 11 15 17 9 Storage 9 | . 14 11 11 9 1 . Processor 20 | . 7 16 22 18 24 18 Hackware 1 | . . . . 4 8 . Energy Gun 3 | . 23 4 2 7 . . Energy Cannon 9 | . . 11 12 8 1 . Ballistic Gun 5 | . 4 6 7 . . . Naked Turns . | . . . . . . . Heaviest Build 23 | 12 14 23 18 20 17 11 Greatest Support 28 | 20 20 20 25 28 26 12 Greatest Overweight (x) 3 | 1 . 1 . 3 1 . Average Overweight (x) . | . . . . . . . Largest Inventory Capacity 8 | 8 8 8 8 8 8 5 Average Capacity 7 | 6 8 8 8 8 5 5 Most Carried 8 | 4 5 8 8 8 7 5 Average Carried 6 | 2 4 6 7 7 4 4 Final Capacity 8 | 8 8 8 8 8 5 5 Final Carried 8 | 4 5 8 8 7 5 4 Class Distribution -------------------- 42% | Scavenger-Skirmisher 31% | Mutant 26% | Skirmisher Dominant Class ---------------- Mutant | -10/Materials Skirmisher | -9/Materials Scavenger-Skirmisher | -9/Mines Scavenger-Skirmisher | -8/Materials Mutant | -8/Storage Mutant | -8/Garrison Resources | -11 -10 -9 -9 -8 -8 -8 ----------- Run | Jun Mat Mat Min Mat Sto Gar Matter Collected 566 | 260 33 43 218 12 . . Remotely . | . . . . . . . Salvage Created 399 | . 74 43 113 169 . . Parts 31 | . 7 8 6 10 . . Haulers Intercepted . | . . . . . . . Recyclers Shooed 1 | . 1 . . . . . Parts Field Recycled . | . . . . . . . Retrieved Matter . | . . . . . . . Parts Self-Destructed . | . . . . . . . Prevented . | . . . . . . . Kills | -11 -10 -9 -9 -8 -8 -8 ------- Run | Jun Mat Mat Min Mat Sto Gar Combat Hostiles Destroyed 10 | . 2 . 4 4 . . Guns 6 | . 2 . 4 . . . AOE 4 | . . . . 4 . . Classes Destroyed 5 | . 1 1 1 2 . . Operator 1 | . . . . 1 . . Watcher 2 | . . 2 . . . . Swarmer 2 | . . . 2 . . . Grunt 7 | . 2 . 2 3 . . Sentry 1 | . . . . 1 . . Best Kill Streak 4 | . 2 1 2 4 . . Combat Bots Only 4 | . 2 . 2 4 . . Max Kills in Single Turn 2 | . 1 1 1 2 . . Gunslinging . | . . . . . . . Exploded 2 | . . . . 2 . . Melee . | . . . . . . . Uniques/NPCs Destroyed . | . . . . . . . Combat | -11 -10 -9 -9 -8 -8 -8 -------- Run | Jun Mat Mat Min Mat Sto Gar Damage Taken 1591 | . 100 . 396 558 123 414 Core 648 | . 22 . 68 229 41 288 Absorbed by Shields 142 | . . . . 29 29 84 Redirected to Shielding 4 | . . . . . . 4 Regen/Repaired (Parts) 45 | . . 45 . . . . Core Remaining (%) 91 | 100 91 . 83 . . . Volleys Fired 27 | . 5 2 15 4 1 . Largest 2 | . 2 2 2 2 1 . Hottest 143 | . 90 136 136 143 68 . Shots Fired 50 | . 10 4 30 5 1 . Gun 29 | . 10 1 17 1 . . Cannon 18 | . . 3 13 1 1 . Launcher 3 | . . . . 3 . . Special . | . . . . . . . Kinetic 19 | . 1 1 17 . . . Thermal 20 | . 1 3 13 2 1 . Explosive 3 | . . . . 3 . . Electromagnetic 8 | . 8 . . . . . Robot Hit Streak 6 | . 4 1 6 4 5 . Robot Miss Streak 3 | . 3 1 2 . . . Penetration Max . | . . . . . . . Secondary Targets . | . . . . . . . Shots Hit Robots 28 | . 6 2 16 3 1 . Core Hits 20 | . 4 2 5 9 . . Critical Kills . | . . . . . . . Critical Parts Destroyed . | . . . . . . . Critical Strikes . | . . . . . . . Melee Attacks . | . . . . . . . Impact . | . . . . . . . Slashing . | . . . . . . . Piercing . | . . . . . . . Sneak Attacks . | . . . . . . . Combat Hostiles . | . . . . . . . Follow-up Attacks . | . . . . . . . Damage Inflicted 895 | . 176 39 318 342 20 . Guns 308 | . 115 18 153 22 . . Cannons 206 | . . 21 165 . 20 . Explosions 381 | . 61 . . 320 . . Melee . | . . . . . . . Ramming . | . . . . . . . Kinetic 181 | . 10 18 153 . . . Thermal 302 | . 74 21 165 22 20 . Explosive 320 | . . . . 320 . . Electromagnetic 92 | . 92 . . . . . Impact . | . . . . . . . Slashing . | . . . . . . . Piercing . | . . . . . . . Highest Corruption . | . . . . . . . Average Corruption . | . . . . . . . Corruption Purged . | . . . . . . . Corruption Blocked . | . . . . . . . Overload Shots . | . . . . . . . Overflow Damage . | . . . . . . . Projectiles . | . . . . . . . Explosions . | . . . . . . . Melee . | . . . . . . . Knockbacks . | . . . . . . . Impact . | . . . . . . . Kinetic . | . . . . . . . Secondary . | . . . . . . . Self-Inflicted Damage 71 | . 33 . . 38 . . Shots 2 | . 1 . . 1 . . Rammed . | . . . . . . . Targets Rammed . | . . . . . . . Kicked . | . . . . . . . Crushed . | . . . . . . . Highest Temperature 453 | . 78 66 453 63 24 50 Average Temperature 141 | . 29 27 223 30 12 19 Received Heat Transfer 662 | . 36 . 186 90 57 293 Effects 4 | . . . 4 . . . Shutdowns 1 | . . . 1 . . . Interference 2 | . . . 2 . . . Short Circuit 1 | . . . 1 . . . Siege Activations . | . . . . . . . Robots Corrupted . | . . . . . . . Combat Hostiles . | . . . . . . . Parts Fried . | . . . . . . . Impact Corruptions . | . . . . . . . Robots Melted . | . . . . . . . Combat Hostiles . | . . . . . . . Parts Melted . | . . . . . . . Heat Transferred 544 | . 137 37 296 37 37 . Parts Sabotaged . | . . . . . . . Parts Stolen . | . . . . . . . Parts Stripped . | . . . . . . . Power Chain Reactions 1 | . 1 . . . . . Missiles Intercepted . | . . . . . . . Alert | -11 -10 -9 -9 -8 -8 -8 ------- Run | Jun Mat Mat Min Mat Sto Gar Peak Influence 175 | . 54 90 124 175 128 85 Initial 70 | . . 22 34 . 54 70 Average 44 | . 10 43 40 54 79 74 Maximum Alert Level . | . . . . . . . Low Security (%) 100 | 100 100 100 100 100 100 100 Level 1 . | . . . . . . . Level 2 . | . . . . . . . Level 3 . | . . . . . . . Level 4 . | . . . . . . . Level 5 . | . . . . . . . High Security . | . . . . . . . Max Security . | . . . . . . . Squads Dispatched 6 | . 3 . . 2 1 . Investigation 1 | . 1 . . . . . Extermination . | . . . . . . . Reinforcement 5 | . 2 . . 2 1 . Assault . | . . . . . . . Garrison . | . . . . . . . Intercept . | . . . . . . . Searches Triggered . | . . . . . . . Construction Impeded . | . . . . . . . Haulers Reinforced . | . . . . . . . Active Scanning Responses . | . . . . . . . Cargo Convoy Interrupts . | . . . . . . . Stealth | -11 -10 -9 -9 -8 -8 -8 --------- Run | Jun Mat Mat Min Mat Sto Gar Distress Signals 2 | . . . . . 2 . Communications Jammed . | . . . . . . . Distress Signals . | . . . . . . . Times Spotted 38 | . 3 3 5 8 13 6 Peak Tracking Total 12 | . 4 1 3 4 12 6 Tactical Retreats 1 | . . . . 1 . . Traps | -11 -10 -9 -9 -8 -8 -8 ------- Run | Jun Mat Mat Min Mat Sto Gar Traps Triggered 5 | . 1 . . . . 4 Indirectly . | . . . . . . . Trap Hack Attempts . | . . . . . . . Triggered . | . . . . . . . Disarmed . | . . . . . . . Reprogrammed . | . . . . . . . Reused . | . . . . . . . Traps Extracted . | . . . . . . . Installed . | . . . . . . . Triggered . | . . . . . . . Machines | -11 -10 -9 -9 -8 -8 -8 ---------- Run | Jun Mat Mat Min Mat Sto Gar Machines Disabled . | . . . . . . . Max in Single Turn . | . . . . . . . Machines Repaired . | . . . . . . . Machines Sabotaged . | . . . . . . . Overloaded Fab Kills . | . . . . . . . Hacking | -11 -10 -9 -9 -8 -8 -8 --------- Run | Jun Mat Mat Min Mat Sto Gar Machines Accessed 8 | . . 3 1 2 2 . Terminals 5 | . . 2 . 2 1 . Fabricators . | . . . . . . . Repair Stations 1 | . . 1 . . . . Recycling Units . | . . . . . . . Scanalyzers . | . . . . . . . Garrison Access 1 | . . . . . 1 . Total Hacks 22 | . . 13 1 5 3 . Successful 14 | . . 7 1 4 2 . Failed 8 | . . 6 . 1 1 . Catastrophic . | . . . . . . . Database Lockouts . | . . . . . . . Manual . | . . . . . . . Terminals 16 | . . 10 . 5 1 . Fabricators . | . . . . . . . Repair Stations 3 | . . 3 . . . . Recycling Units . | . . . . . . . Scanalyzers . | . . . . . . . Garrison Access 2 | . . . . . 2 . Terminal Hacks 11 | . . 5 1 4 1 . Open Door 1 | . . . 1 . . . Branch Access Points 1 | . . 1 . . . . Emergency Access Points 2 | . . 1 . . 1 . Dispatch Records 2 | . . 1 . 1 . . Maintenance Status 1 | . . . . 1 . . Investigation Status 1 | . . 1 . . . . Hauler Manifests 3 | . . 1 . 2 . . Fabricator Hacks . | . . . . . . . Repair Station Hacks 2 | . . 2 . . . . Scan Component 1 | . . 1 . . . . Repair 1 | . . 1 . . . . Recycling Unit Hacks . | . . . . . . . Scanalyzer . | . . . . . . . Garrison Access Hacks 1 | . . . . . 1 . Unlock Access 1 | . . . . . 1 . Unauthorized Hacks . | . . . . . . . Terminals . | . . . . . . . Fabricators . | . . . . . . . Repair Stations . | . . . . . . . Recycling Units . | . . . . . . . Scanalyzers . | . . . . . . . Garrison Access . | . . . . . . . Data Cores Recovered 1 | . . . . 1 . . Used . | . . . . . . . Hacking Detections 5 | . . 2 . 1 2 . Full Trace Events . | . . . . . . . Feedback Events . | . . . . . . . Feedback Blocked . | . . . . . . . Robot Schematics Acquired . | . . . . . . . Robots Built . | . . . . . . . Authchips . | . . . . . . . Time . | . . . . . . . Total Robot Build Rating . | . . . . . . . Part Schematics Acquired . | . . . . . . . Parts Built . | . . . . . . . Authchips . | . . . . . . . Time . | . . . . . . . Total Part Build Rating . | . . . . . . . Parts Repaired 1 | . . 1 . . . . Time 26 | . . 26 . . . . Parts Recycled . | . . . . . . . Recycled Matter . | . . . . . . . Retrieved Matter . | . . . . . . . Retrieved Components . | . . . . . . . Parts Scanalyzed . | . . . . . . . Part Schematics Acquired . | . . . . . . . Parts Damaged . | . . . . . . . Bothacking | -11 -10 -9 -9 -8 -8 -8 ------------ Run | Jun Mat Mat Min Mat Sto Gar Used RIF Installer . | . . . . . . . Robots Hacked . | . . . . . . . Non-combat . | . . . . . . . Combat . | . . . . . . . Robot Hacks Applied . | . . . . . . . Relay Couplers Released . | . . . . . . . Fabnet Peak Effective % . | . . . . . . . Robots Rewired . | . . . . . . . Allies Hacked . | . . . . . . . Hacks Repelled . | . . . . . . . Allies | -11 -10 -9 -9 -8 -8 -8 -------- Run | Jun Mat Mat Min Mat Sto Gar Total Allies 1 | . . . 1 . . . Largest Group 1 | . . . 1 . . . Highest-Rated Group 31 | . . . 31 . . . Highest-Rated Ally 31 | . . . 31 . . . Total Orders . | . . . . . . . Ally Attacks . | . . . . . . . Total Damage . | . . . . . . . Kills . | . . . . . . . Allies Corrupted . | . . . . . . . Allies Melted . | . . . . . . . Intel | -11 -10 -9 -9 -8 -8 -8 ------- Run | Jun Mat Mat Min Mat Sto Gar Robot Analysis Total . | . . . . . . . Derelict Logs Recovered 2 | . . . 2 . . . Drone Launches . | . . . . . . . Drone Recoveries . | . . . . . . . Exploration | -11 -10 -9 -9 -8 -8 -8 ------------- Run | Jun Mat Mat Min Mat Sto Gar Turns Passed 1830 | 71 97 278 978 146 174 86 Spaces Moved 1416 | 51 57 167 752 106 209 74 Core 276 | 7 . . . 2 193 74 Treads . | . . . . . . . Legs 1140 | 44 57 167 752 104 16 . Wheels . | . . . . . . . Hover . | . . . . . . . Flight . | . . . . . . . Fastest Speed 50 | 50 120 120 120 120 50 50 Average Speed 108 | 114 120 124 120 121 61 50 Slowest Speed 200 | 120 120 190 120 200 130 50 Overloaded Moves . | . . . . . . . Propulsion Burnouts . | . . . . . . . Robots Hopped . | . . . . . . . Cave-ins Triggered . | . . . . . . . Exploration Rate (%) 31 | 4 22 20 100 11 43 22 Regions Visited 6 Branch Regions 2 Pre-discovered Areas 3 | . . . 3 . . . Known Exits Taken 4 | . . 1 1 1 1 . Unknown Exits Taken 2 | 1 1 . . . . . Scrap Searched 2 | . . . 2 . . . Spaces Dug 14 | . . . . 14 . . Terrain Destroyed 43 | . 3 . . 40 . . Melee . | . . . . . . . Projectile . | . . . . . . . AOE 43 | . 3 . . 40 . . Terrain Rammed . | . . . . . . . Walls Destroyed . | . . . . . . . Machines Disabled . | . . . . . . . Actions | -11 -10 -9 -9 -8 -8 -8 --------- Run | Jun Mat Mat Min Mat Sto Gar Total 1663 | 60 75 233 800 117 255 123 Wait 112 | . 9 36 17 1 29 20 Move 1410 | 50 56 166 751 105 208 74 Hop . | . . . . . . . Pick Up 18 | 4 . 9 3 1 1 . Fast Attach 23 | 6 3 6 3 2 3 . Attach 7 | . . 1 . 1 4 1 Detach 5 | . 1 1 . . 3 . Swap 11 | . . 4 5 2 . . Drop 22 | . 1 8 6 1 6 . Fire 27 | . 5 2 15 4 1 . Melee . | . . . . . . . Ram . | . . . . . . . Kick . | . . . . . . . Crush . | . . . . . . . Escape Stasis 28 | . . . . . . 28 Rewire . | . . . . . . . Trap . | . . . . . . . Miscellaneous . | . . . . . . . Route ------- -11/Junkyard -10/Materials -9/Materials -9/Mines (discovered 2 exits: *Mat x2) -8/Materials -8/Storage -8/Garrison History --------- Turn | Location | Event 9 | -11/Junkyard | Discovered new exit (range 16) 72 | -11/Junkyard | Entered Materials 122 | -10/Materials | Discovered new exit (range 15) 169 | -10/Materials | Entered another Materials area 169 | -9/Materials | Evolved 2 slots: Utility x2 220 | -9/Materials | Repaired Aluminum Leg 245 | -9/Materials | Identified exit to Mines 301 | -9/Materials | Build established: Mutant 447 | -9/Materials | Entered Mines 531 | -9/Mines | Met a Derelict bent on vengeance 575 | -9/Mines | Learned location of Zion (-6) 606 | -9/Mines | Build established: Skirmisher 784 | -9/Mines | Discovered new exit (range 17) 793 | -9/Mines | Escorted by a lone wolf Derelict 805 | -9/Mines | Identified exit to Materials 813 | -9/Mines | Learned location of Storage (-8) 921 | -9/Mines | Discovered exit to Materials (range 11) 1100 | -9/Mines | Build established: Scavenger-Skirmisher 1195 | -9/Mines | Met a Derelict who couldn't figure out how to use a Trap Extractor 1425 | -9/Mines | Entered Materials 1425 | -8/Materials | Evolved 2 slots: Utility x2 1553 | -8/Materials | Discovered new exit (range 15) 1568 | -8/Materials | Identified exit to Storage 1571 | -8/Materials | Entered Storage 1600 | -8/Storage | Lost 6 parts (1p3n1u1w) 1743 | -8/Storage | Identified exit to Garrison 1745 | -8/Storage | Entered Garrison 1788 | -8/Garrison | Triggered checkpoint 1789 | -8/Garrison | Core integrity fell below 50% 1798 | -8/Garrison | Triggered checkpoint 1816 | -8/Garrison | Core integrity fell below 20% 1831 | -8/Garrison | Destroyed by G-47 Trooper with Particle Gun Last Messages --------------- A bubble of rippling energy engulfs the area. Field strength at 89. Field strength at 78. Field strength at 62. Field strength at 51. Field strength at 27. Field strength at 11. Stasis field depleted. Triggered Stasis Trap. A bubble of rippling energy engulfs the area. Field strength at 89. Field strength at 78. Field strength at 67. Field strength at 56. Field strength at 45. Field strength at 34. Field strength at 23. Field strength at 12. Critical hit (Burn: +27). Stasis field depleted. Map ----- +----------------------------------------------------+ | ?????????????? ????????????????## ## ## ##??? | | ?????????????? ????????????????# #??? | | ?????????????? ????????????????# #??? | | ?????????????? ????????????????# #??? | | ?????????????? ????????????????# ## ## #??? | | ?????????????????????????????### ^ ## ## #??? | | ?????????????????????????????# ^ "??? | | ?????????????????????????????# "??? | | ?????????????????????????????# "??? | | ?????????????????????????????# "??? | | ?????????????????????????????### ## ## #??? | | ???????????????????????????????# ## ## #### | | ???????????????????????????????+ | | ???????????????????????????????+ | | ???????????????????????????????# | | ???????????????????????????????# ##""""######### | | ???????????????????????????????# #?????????????? | | ???????????????????????????????# #??#??????????? | | ???????????????????????????????# ## ???????????? | | ???????????????????????????????# + ????????????? | | ???????????????????????????????# #?????????????? | | ???????????????????????????????# ^#?????????????? | | ???????????## ##################g #?????????????? | | ??????????# g #?????????????? | | ??????????# ^^ #?????????????? | | ??????????# @ #?????????????? | | ?????????????????###################?????????????? | | ?????????????????????????????????????????????????? | | ?????????????????????????????????????????????????? | | ?????????????????????????????????????????????????? | | ?????????????????????????????????????????????????? | | ?????????????????????????????????????????????????? | | ?????????????????????????????????????????????????? | | ?????????????????????????????????????????????????? | | ?????????????????????????????????????????????????? | | ?????????????????????????????????????????????????? | | ?????????????????????????????????????????????????? | | ?????????????????????????????????????????????????? | | ?????????????????????????????????????????????????? | | ?????????????????????????????????????????????????? | | ?????????????????????????????????????????????????? | | ?????????????????????????????????????????????????? | | ?????????????????????????????????????????????????? | | ?????????????????????????????????????????????????? | | ?????????????????????????????????????????????????? | | ?????????????????????????????????????????????????? | | ?????????????????????????????????????????????????? | | ?????????????????????????????????????????????????? | | ?????????????????????????????????????????????????? | | ?????????????????????????????????????????????????? | +----------------------------------------------------+ Best States ------------- Heat Dissipation 31 Energy Generation 12 Energy Capacity 265 Matter Stores 300 Matter Capacity 300 Sight Range 18 Robot Scan Range 14 Terrain Scan Density 10 Additional Mass Support 9 Utility Shielding 33 Evasion (%) 55 Targeting Accuracy 8 Salvage Targeting 1 Defensive Hacking 10 Item Schematics ----------------- None Robot Schematics ------------------ None Fabricated ------------ Nothing Alien Tech Used ----------------- None Achievements -------------- None Challenges ------------ None Game ------ Seed SubatomicTractorRail Manual? 0 Play Time 00:20:24 Cumulative 22.3 hours Start 2024.02.01 @ 00:41:34 End 2024.02.01 @ 01:01:01 Sessions 1 Manual Loads 0 Difficulty Rogue Special Mode None Game No. 26 Rogue 26 Adventurer 0 Explorer 0 Win Type - Total 0 Types 0/0/0/0/0/0/0/0/0 Lore% 28 Gallery% 31 Achievement% 27 Wizard Run 0 Options --------- ASCII 0 Keyboard 0 Movement Numpad Keybinds 0 Fullscreen 1 Font 24/Smallcaps Map View 76x50 Tactical HUD 0 Map Filters NONE Filters NONE Steam 1 RUN: f78f0efc-df8d-49c3-ac64-20f615e13b96